fUST/lending_fUST_20250812
["ID","MTS","AMOUNT","RATE_DAILY","PERIOD"]
[378730735,1754993468762,-500.0,0.00021917,2]
[378730736,1754993468771,-500.0,0.00021917,2]
[378730737,1754993468780,-500.0,0.00021917,2]
[378730738,1754993468789,-500.0,0.00021917,2]
[378730739,1754993468799,-500.0,0.00021917,2]
[378730740,1754993468808,-500.0,0.00021917,2]
[378730741,1754993468817,-500.0,0.00021917,2]
[378730742,1754993468826,-500.0,0.00021917,2]
[378730743,1754993468835,-500.0,0.00021917,2]
[378730744,1754993468845,-500.0,0.00021917,2]
[378730745,1754993468854,-500.0,0.00021917,2]
[378730746,1754993468863,-153.0,0.00021918,2]
[378730747,1754993468872,-153.0,0.00021918,2]
[378730748,1754993468882,-153.0,0.00021918,2]
[378730749,1754993468891,-153.0,0.00021918,2]
[378730750,1754993468900,-153.0,0.00021918,2]
[378730751,1754993468909,-153.0,0.00021918,2]
[378730752,1754993468918,-153.0,0.00021918,2]
[378730753,1754993468928,-153.0,0.00021918,2]
[378730754,1754993468938,-153.0,0.00021918,2]
[378730755,1754993468947,-153.0,0.00021918,2]
[378730756,1754993468960,-153.0,0.00021918,2]
[378730757,1754993468969,-153.0,0.00021918,2]
[378730758,1754993468978,-153.0,0.00021918,2]
[378730759,1754993468987,-153.0,0.00021918,2]
[378730760,1754993468999,-153.0,0.00021918,2]
[378730761,1754993469008,-153.0,0.00021918,2]
[378730762,1754993469017,-153.0,0.00021918,2]
[378730763,1754993469027,-153.0,0.00021918,2]
[378730764,1754993469038,-153.0,0.00021918,2]
[378730765,1754993469048,-153.0,0.00021918,2]
[378730766,1754993469057,-153.0,0.00021918,2]
[378730767,1754993469066,-153.0,0.00021918,2]
[378730768,1754993469075,-153.0,0.00021918,2]
[378730769,1754993469084,-153.0,0.00021918,2]
[378730770,1754993469093,-153.0,0.00021918,2]
[378730771,1754993469102,-153.0,0.00021918,2]
[378730772,1754993469111,-153.0,0.00021918,2]
[378730773,1754993469120,-153.0,0.00021918,2]
[378730774,1754993469130,-153.0,0.00021918,2]
[378730775,1754993469139,-153.0,0.00021918,2]
[378730776,1754993469148,-153.0,0.00021918,2]
[378730777,1754993469157,-153.0,0.00021918,2]
[378730778,1754993469166,-153.0,0.00021918,2]
[378730779,1754993469175,-153.0,0.00021918,2]
[378730780,1754993469184,-153.0,0.00021918,2]
[378730781,1754993469193,-153.0,0.00021918,2]
[378730782,1754993469203,-153.0,0.00021918,2]
[378730783,1754993469212,-153.0,0.00021918,2]
[378730784,1754993469222,-153.0,0.00021918,2]
[378730785,1754993469231,-153.0,0.00021918,2]
[378730786,1754993469240,-153.0,0.00021918,2]
[378730787,1754993469249,-153.0,0.00021918,2]
[378730788,1754993469258,-153.0,0.00021918,2]
[378730789,1754993469267,-153.0,0.00021918,2]
[378730790,1754993469276,-153.0,0.00021918,2]
[378730791,1754993469286,-153.0,0.00021918,2]
[378730792,1754993469295,-153.0,0.00021918,2]
[378730793,1754993469303,-153.0,0.00021918,2]
[378730794,1754993469313,-153.0,0.00021918,2]
[378730795,1754993469322,-153.0,0.00021918,2]
[378730796,1754993469331,-153.0,0.00021918,2]
[378730797,1754993469341,-153.0,0.00021918,2]
[378730798,1754993469349,-153.0,0.00021918,2]
[378730799,1754993469358,-153.0,0.00021918,2]
[378730800,1754993469368,-153.0,0.00021918,2]
[378730801,1754993469377,-153.0,0.00021918,2]
[378730802,1754993469386,-153.0,0.00021918,2]
[378730803,1754993469395,-153.0,0.00021918,2]
[378730804,1754993469405,-153.0,0.00021918,2]
[378730805,1754993469418,-153.0,0.00021918,2]
[378730806,1754993469427,-153.0,0.00021918,2]
[378730807,1754993469436,-153.0,0.00021918,2]
[378730808,1754993469445,-153.0,0.00021918,2]
[378730809,1754993469455,-153.0,0.00021918,2]
[378730810,1754993469464,-153.0,0.00021918,2]
[378730811,1754993469473,-153.0,0.00021918,2]
[378730812,1754993469483,-153.0,0.00021918,2]
[378730813,1754993469493,-153.0,0.00021918,2]
[378730814,1754993469503,-153.0,0.00021918,2]
[378730815,1754993469512,-153.0,0.00021918,2]
[378730816,1754993469521,-153.0,0.00021918,2]
[378730817,1754993469530,-153.0,0.00021918,2]
[378730818,1754993469539,-153.0,0.00021918,2]
[378730819,1754993469549,-153.0,0.00021918,2]
[378730820,1754993469558,-153.0,0.00021918,2]
[378730821,1754993469568,-153.0,0.00021918,2]
[378730822,1754993469577,-153.0,0.00021918,2]
[378730823,1754993469586,-153.0,0.00021918,2]
[378730824,1754993469595,-153.0,0.00021918,2]
[378730825,1754993469604,-153.0,0.00021918,2]
[378730826,1754993469614,-153.0,0.00021918,2]
[378730827,1754993469623,-153.0,0.00021918,2]
[378730828,1754993469632,-153.0,0.00021918,2]
[378730829,1754993469642,-153.0,0.00021918,2]
[378730830,1754993469651,-162.65333618,0.00021918,2]
[378730831,1754993469660,-153.0,0.00021918,2]
[378730832,1754993469670,-153.0,0.00021918,2]
[378730833,1754993469679,-153.0,0.00021918,2]
[378730834,1754993469688,-153.0,0.00021918,2]
[378730835,1754993469698,-153.0,0.00021918,2]
[378730836,1754993469709,-153.0,0.00021918,2]
[378730837,1754993469718,-153.0,0.00021918,2]
[378730838,1754993469728,-153.0,0.00021918,2]
[378730839,1754993469743,-153.0,0.00021918,2]
[378730840,1754993469753,-153.0,0.00021918,2]
[378730841,1754993469762,-153.0,0.00021918,2]
[378730842,1754993469771,-153.0,0.00021918,2]
[378730843,1754993469781,-153.0,0.00021918,2]
[378730844,1754993469790,-153.0,0.00021918,2]
[378730845,1754993469799,-153.0,0.00021918,2]
[378730846,1754993469808,-153.0,0.00021918,2]
[378730847,1754993469818,-153.0,0.00021918,2]
[378730848,1754993469827,-153.0,0.00021918,2]
[378730849,1754993469836,-153.0,0.00021918,2]
[378730850,1754993469846,-153.0,0.00021918,2]
[378730851,1754993469855,-153.0,0.00021918,2]
[378730852,1754993469864,-153.0,0.00021918,2]
[378730853,1754993469874,-426.096636,0.00021918,2]
[378730854,1754993469883,-426.096636,0.00021918,2]
[378730855,1754993469892,-426.096636,0.00021918,2]
[378730856,1754993469901,-426.096636,0.00021918,2]
[378730857,1754993469910,-157.06970312,0.00021918,2]
[378730858,1754993469920,-150.0,0.00021918,2]
[378730859,1754993469935,-200.0,0.00021918,2]
[378730860,1754993469945,-500.0,0.00021918,2]
[378730861,1754993469957,-426.096636,0.00021918,7]
[378730862,1754993469966,-426.096636,0.00021918,7]
[378730863,1754993469975,-2765.637727,0.00021918,7]
[378730864,1754993469985,-2765.637727,0.00021918,7]
[378730865,1754993469995,-967.98670336,0.00021934,5]
[378730866,1754993470005,-151.0,0.00021945,2]
[378730867,1754993470014,-151.0,0.00021945,2]
[378730868,1754993470024,-151.0,0.00021945,2]
[378730869,1754993470034,-151.0,0.00021945,2]
[378730870,1754993470052,-500.0,0.00021945,2]
[378730871,1754993470062,-225.67906981,0.00021945,2]
[378730872,1754993470071,-151.0,0.00021945,2]
[378730873,1754993470080,-151.0,0.00021945,2]
[378730874,1754993470090,-151.0,0.00021945,2]
[378730875,1754993470099,-265.96506597,0.00021945,2]
[378730876,1754993470108,-151.0,0.00021945,2]
[378730877,1754993470118,-500.0,0.00021945,2]
[378730878,1754993470128,-2801.0,0.00021945,2]
[378730879,1754993470137,-500.0,0.00021945,2]
[378730880,1754993470146,-151.0,0.00021945,2]
[378730881,1754993470155,-500.0,0.00021945,2]
[378730882,1754993470164,-151.29593713,0.00021945,2]
[378730883,1754993470173,-151.0,0.00021945,2]
[378730884,1754993470183,-151.0,0.00021945,2]
[378730885,1754993470191,-500.0,0.00021945,2]
[378730886,1754993470202,-151.0,0.00021945,2]
[378730887,1754993470212,-151.0,0.00021945,2]
[378730888,1754993470221,-500.0,0.00021945,2]
[378730889,1754993470230,-151.0,0.00021945,2]
[378730890,1754993470239,-151.0,0.00021945,2]
[378730891,1754993470249,-152.3627036,0.00021945,2]
[378730892,1754993470258,-151.0,0.00021945,2]
[378730893,1754993470267,-151.0,0.00021945,2]
[378730894,1754993470277,-151.0,0.00021945,2]
[378730895,1754993470286,-500.0,0.00021945,2]
[378730896,1754993470296,-500.0,0.00021945,2]
[378730897,1754993470306,-150.0,0.00021973,2]
[378730898,1754993470316,-28362.02214165,0.00022,2]
[378730899,1754993470325,-61652.98,0.00022,7]
[378730900,1754993470335,-7263.09753965,0.00022,2]
[378730901,1754993470345,-762.0,0.00022,2]
[378730902,1754993470355,-200.0,0.00022,2]
[378730903,1754993470364,-160.0,0.00022,7]
[378730904,1754993470373,-7008.79,0.00022,7]
[378730905,1754993470382,-19091.51,0.00022,7]
[378730906,1754993470392,-25506.68618227,0.00022,2]
[378730907,1754993470748,-968.12663099,0.00022,2]
[378730908,1754993470996,-251.99999995,0.0001823,2]
[378730909,1754993471827,-0.03329405,0.0001823,2]
[378730910,1754993473423,-717.906706,0.0001823,2]
[378730911,1754993473432,-619.474209,0.0001823,2]
[378730912,1754993473443,-268.38624361,0.0001823,2]
[378730913,1754993473455,-364.65053362,0.0001823,2]
[378730914,1754993507593,600.923125,0.0001769,2]
[378730915,1754993626887,181.1818645,0.00017364,2]
[378730916,1754993773379,-200.0,0.00026707,120]
[378730917,1754993773425,-200.49693,0.00027,120]
[378730918,1754993773478,-200.0,0.00028722,120]
[378730919,1754993773526,-200.0,0.00028722,120]
[378730920,1754993773574,-200.0,0.0002877,120]
[378730921,1754993773619,-200.0,0.00028875,120]
[378730922,1754993773668,-200.0,0.00028875,120]
[378730923,1754993773715,-200.0,0.00029153,120]
[378730924,1754993773764,-200.0,0.00029341,120]
[378730925,1754993773814,-200.0,0.00029855,120]
[378730926,1754993773863,-200.0,0.00029864,120]
[378730927,1754993773912,-200.0,0.00029962,120]
[378730928,1754993773962,-200.0,0.00030037,120]
[378730929,1754993786533,-4670.23630384,0.00031381,60]
[378730930,1754993786584,-2000.0,0.00031381,60]
[378730931,1754993786633,-3205.190639,0.00031381,120]
[378730932,1754993786682,-160.9832726,0.00031381,120]
[378730933,1754993786922,-308.6762837,0.00031381,120]
[378730934,1754993786970,-393.08779194,0.00031381,60]
[378730935,1754993787023,-154.18259163,0.00031381,120]
[378730936,1754993787079,-1049.27945046,0.00031381,120]
[378730937,1754993787128,-492.5,0.00031381,60]
[378730938,1754993787176,-12042.69786553,0.00031381,60]
[378730939,1754993787224,-10748.5,0.00031381,60]
[378730940,1754993789253,1109.56860379,0.0001214,2]
[378730941,1754993789275,1590.43139621,0.0001214,2]
[378730942,1754993793133,2700.0,0.0001351,2]
[378730943,1754993797356,2700.0,0.0001488,2]
[378730944,1754993801042,2700.0,0.0001625,2]
[378730945,1754993815486,309.56860379,0.00018028,2]
[378730946,1754993815510,1582.07898088,0.00018028,2]
[378730947,1754993878049,8417.92101912,0.00017199,2]
[378730948,1754993878070,10000.0,0.00017199,2]
[378730949,1754993878094,6482.07898088,0.00017199,2]
[378730950,1754993889257,3517.92101912,0.0001805,2]
[378730951,1754993889278,919.66711987,0.0001805,2]
[378730952,1754993897800,5000.0,0.0001805,2]
[378730953,1754993913692,4080.33288013,0.0001805,2]
[378730954,1754993913722,919.66711987,0.0001805,2]
[378730955,1754993929786,5000.0,0.0001805,2]
[378730956,1754993934840,-294.19355999,0.00018126,2]
[378730957,1754993942199,-5.80644001,0.00018126,2]
[378730958,1754993942222,-295.96802361,0.00018127,2]
[378730959,1754993945401,-261.63178041,0.00018126,2]
[378730960,1754993945429,4080.33288013,0.0001805,2]
[378730961,1754993945452,919.66711987,0.0001805,2]
[378730962,1754993951698,-38.36821959,0.00018126,2]
[378730963,1754993951721,-164.03197639,0.00018127,2]
[378730964,1754993951743,-97.59980402,0.00018127,2]
[378730965,1754993953488,-162.50916648,0.00018127,2]
[378730966,1754993956204,-158.02347389,0.00018127,2]
[378730967,1754993958826,-41.86755561,0.00018127,2]
[378730968,1754993958849,-212.1663415,0.00018127,2]
[378730969,1754993961155,-257.7536585,0.00018127,2]
[378730970,1754993961180,-25.25563884,0.00018127,2]
[378730971,1754993964992,-244.71229766,0.00018127,2]
[378730972,1754993966631,-394.15293683,0.00018127,2]
[378730973,1754993969446,-154.90224994,0.00018127,2]
[378730974,1754993972256,-152.49687673,0.00018127,2]
[378730975,1754993972278,-158.93019357,0.00018127,2]
[378730976,1754993974715,-166.9356753,0.00018127,2]
[378730977,1754993976329,-134.13413113,0.00018127,2]
[378730978,1754993976352,-99.93779708,0.00018127,2]
[378730979,1754993979034,-334.60769642,0.00018127,2]
[378730980,1754993982609,-25.4545065,0.00018127,2]
[378730981,1754993982631,-151.49281876,0.00018127,2]
[378730982,1754993985497,-235.324473,0.00018127,2]
[378730983,1754993987632,-73.18270824,0.00018127,2]
[378730984,1754993987656,-94.56091299,0.00018127,2]
[378730985,1754993989910,-345.09775006,0.00018127,2]
[378730986,1754993992311,-278.86136868,0.00018127,2]
[378730987,1754993994611,-166.59502041,0.00018127,2]
[378730988,1754994007402,-300.0,0.00018126,2]
[378730989,1754994007425,-54.98540819,0.00018127,2]
[378730990,1754994010141,-160.0,0.00018127,2]
[378730991,1754994013293,-205.49223635,0.00018127,2]
[378730992,1754994016221,-156.49865956,0.00018127,2]
[378730993,1754994018389,-147.33864376,0.00018127,2]
[378730994,1754994018415,-20.30902013,0.00018127,2]
[378730995,1754994020574,-292.69115805,0.00018127,2]
[378730996,1754994023701,-146.99982182,0.00018127,2]
[378730997,1754994023725,-234.19330905,0.00018127,2]
[378730998,1754994027197,-171.64079428,0.00018127,2]
[378730999,1754994028980,-54.16589667,0.00018127,2]
[378731000,1754994029005,-170.9411954,0.00018127,2]
[378731001,1754994031206,-289.0588046,0.00018127,2]
[378731002,1754994031230,-22.28532515,0.00018127,2]
[378731003,1754994032874,-166.42584238,0.00018127,2]
[378731004,1754994036238,-255.57894804,0.00018127,2]
[378731005,1754994040788,-197.7186863,0.00018127,2]
[378731006,1754994043189,-287.3297992,0.00018127,2]
[378731007,1754994046506,-185.89171525,0.00018127,2]
[378731008,1754994049402,-176.16745337,0.00018127,2]
[378731009,1754994051071,-241.34877261,0.00018127,2]
[378731010,1754994051472,2100.0,0.0001762,2]
[378731011,1754994054909,-276.31232771,0.00018127,2]
[378731012,1754994067380,-300.0,0.00018126,2]
[378731013,1754994067404,-55.39178053,0.00018127,2]
[378731014,1754994070228,-121.75934946,0.00018127,2]
[378731015,1754994070252,-44.83567095,0.00018127,2]
[378731016,1754994073090,-423.92528387,0.00018127,2]
[378731017,1754994075975,-6.21904518,0.00018127,2]
[378731018,1754994076000,-253.00842503,0.00018127,2]
[378731019,1754994079374,-206.99157497,0.00018127,2]
[378731020,1754994079398,-89.15529642,0.00018127,2]
[378731021,1754994081628,-177.11,0.00018127,2]
[378731022,1754994085764,-193.73470358,0.00018127,2]
[378731023,1754994085787,-42.26803017,0.00018127,2]
[378731024,1754994089684,-210.05091443,0.00018127,2]
[378731025,1754994093054,-390.63486432,0.00018127,2]
[378731026,1754994095969,-180.16619108,0.00018127,2]
[378731027,1754994095991,-58.19626513,0.00018127,2]
[378731028,1754994100445,-159.91989951,0.00018127,2]
[378731029,1754994100730,1683.33002306,0.00018028,2]
[378731030,1754994102181,-219.03975401,0.00018127,2]
[378731031,1754994104686,-22.84408135,0.00018127,2]
[378731032,1754994104709,-256.71224696,0.00018127,2]
[378731033,1754994106457,-256.62505515,0.00018127,2]
[378731034,1754994108803,-333.64991787,0.00018127,2]
[378731035,1754994111638,-209.58761311,0.00018127,2]
[378731036,1754994114973,-165.93516691,0.00018127,2]
[378731037,1754994114995,-126.97266551,0.00018127,2]
[378731038,1754994116583,332.617164,0.00017584,2]
[378731039,1754994116949,259.88112096,0.00017585,2]
[378731040,1754994117844,-333.02733449,0.00018127,2]
[378731041,1754994117867,-228.94649826,0.00018127,2]
[378731042,1754994120016,-209.8275431,0.00018127,2]
[378731043,1754994123965,-296.95424603,0.00018126,2]
[378731044,1754994125634,-3.04575397,0.00018126,2]
[378731045,1754994125657,-47.71595864,0.00018127,2]
[378731046,1754994125680,-108.53850742,0.00018127,2]
[378731047,1754994129062,-267.97210634,0.00018127,2]
[378731048,1754994130779,-83.48938624,0.00018127,2]
[378731049,1754994130803,-278.44691316,0.00018127,2]
[378731050,1754994132442,-328.73709827,0.00018127,2]
[378731051,1754994136629,-195.96891215,0.00018127,2]
[378731052,1754994138966,-202.61707642,0.00018127,2]
[378731053,1754994138989,-124.75100415,0.00018127,2]
[378731054,1754994140714,-395.39899585,0.00018127,2]
[378731055,1754994140737,-2.60278456,0.00018127,2]
[378731056,1754994142383,-428.58558453,0.00018127,2]
[378731057,1754994145544,-224.02163091,0.00018127,2]
[378731058,1754994145568,-232.69793018,0.00018127,2]
[378731059,1754994147827,-266.01876366,0.00018127,2]
[378731060,1754994157403,-125.42330616,0.00018127,2]
[378731061,1754994157427,-82.54865172,0.00018127,2]
[378731062,1754994161562,-166.23342919,0.00018127,2]
[378731063,1754994163526,-344.94912427,0.00018127,2]
[378731064,1754994165242,-196.29442186,0.00018127,2]
[378731065,1754994166707,-25.64437296,0.00018127,2]
[378731066,1754994166732,-129.40650277,0.00018127,2]
[378731067,1754994168895,-171.73154916,0.00018127,2]
[378731068,1754994173579,-362.52785105,0.00018127,2]
[378731069,1754994173603,-2.6085644,0.00018127,2]
[378731070,1754994177274,-415.83836332,0.00018127,2]
[378731071,1754994180878,-81.55307228,0.00018127,2]
[378731072,1754994180902,-151.51170282,0.00018127,2]
[378731073,1754994183091,-278.37838903,0.00018127,2]
[378731074,1754994186877,-159.57720612,0.00018126,2]
[378731075,1754994189814,-140.42279388,0.00018126,2]
[378731076,1754994189837,-70.10990815,0.00018127,2]
[378731077,1754994189860,-89.46729797,0.00018127,2]
[378731078,1754994191954,-215.85535442,0.00018127,2]
[378731079,1754994194771,-160.0,0.00018127,2]
[378731080,1754994198165,-124.14464558,0.00018127,2]
[378731081,1754994198190,-50.97535442,0.00018127,2]
[378731082,1754994200340,-224.62500086,0.00018127,2]
[378731083,1754994202028,-86.06707886,0.00018127,2]
[378731084,1754994202052,-71.50608973,0.00018127,2]
[378731085,1754994217463,-200.6999928,0.00018127,2]
[378731086,1754994217491,-95.95305474,0.00018127,2]
[378731087,1754994220370,-241.98082196,0.00018127,2]
[378731088,1754994223198,-160.32981754,0.00018127,2]
[378731089,1754994226206,-1.73630576,0.00018127,2]
[378731090,1754994226229,-152.7016997,0.00018127,2]
[378731091,1754994229823,-58.33704107,0.00018127,2]
[378731092,1754994229845,-102.03431025,0.00018127,2]
[378731093,1754994231574,-153.0,0.00018127,2]
[378731094,1754994234350,-244.96568975,0.00018127,2]
[378731095,1754994234372,-21.9983178,0.00018127,2]
[378731096,1754994236561,-176.96536924,0.00018127,2]
[378731097,1754994236585,-41.00345851,0.00018127,2]
[378731098,1754994239928,-300.99477918,0.00018127,2]
[378731099,1754994243614,-300.0,0.00018126,2]
[378731100,1754994243639,-4.57550045,0.00018127,2]
[378731104,1754994317440,178.533176,0.00030136,120]
[378731105,1754994358781,-186.93,0.00018119,3]
[378731106,1754994358805,-72.23331984,0.00018126,2]
[378731108,1754994380956,1813.02647453,0.00018027,2]
[378731113,1754994444801,300.461563,0.00017128,2]
[378731119,1754994525743,150.99999966,0.0002,120]
[378731122,1754994530579,3724.4,0.00030997,120]
[378731150,1754994632534,-784.0714949,0.00018119,2]
[378731151,1754994632543,-300.0,0.00018125,2]
[378731152,1754994632553,-500.0,0.00018125,2]
[378731153,1754994632562,-294.57365142,0.00018125,2]
[378731154,1754994632571,-500.0,0.00018125,2]
[378731155,1754994632581,-96.25485378,0.00018126,2]
[378731156,1754994632608,-363.74514622,0.00018126,2]
[378731157,1754994632617,-965.9914474,0.00018126,2]
[378731158,1754994632628,-859.3685526,0.00018126,2]
[378731159,1754994632638,-460.0,0.00018126,2]
[378731160,1754994632647,-2097.87,0.00018126,2]
[378731161,1754994632657,-489.12,0.00018126,2]
[378731162,1754994632666,-460.0,0.00018126,2]
[378731163,1754994632676,-847.62,0.00018126,2]
[378731164,1754994632685,-460.0,0.00018126,2]
[378731165,1754994632694,-502.37,0.00018126,2]
[378731166,1754994632703,-1258.9,0.00018126,2]
[378731167,1754994632713,-1038.6,0.00018126,2]
[378731168,1754994632722,-460.0,0.00018126,2]
[378731169,1754994632732,-517.65,0.00018126,2]
[378731170,1754994632741,-674.71,0.00018126,2]
[378731171,1754994632751,-642.71,0.00018126,2]
[378731172,1754994632761,-2548.13,0.00018126,2]
[378731173,1754994632770,-839.95,0.00018126,2]
[378731174,1754994632780,-460.0,0.00018126,2]
[378731175,1754994632789,-460.0,0.00018126,2]
[378731176,1754994632799,-460.0,0.00018126,2]
[378731177,1754994632808,-460.0,0.00018126,2]
[378731178,1754994632817,-460.0,0.00018126,2]
[378731179,1754994632827,-460.0,0.00018126,2]
[378731180,1754994632836,-460.0,0.00018126,2]
[378731181,1754994632846,-999.40035978,0.00018126,2]
[378731182,1754994632859,-42093.95022013,0.00018126,2]
[378731194,1754994637968,-1362.92,0.00018126,2]
[378731195,1754994637978,-460.0,0.00018126,2]
[378731196,1754994637988,-608.17770889,0.00018126,2]
[378731197,1754994637999,-7297.87207098,0.00018126,2]
[378731198,1754994638011,-490.61,0.00018127,2]
[378731199,1754994638020,-460.0,0.00018127,2]
[378731200,1754994638030,-460.0,0.00018127,2]
[378731201,1754994638039,-270.64542902,0.00018127,2]
[378731202,1754994638051,-189.35457098,0.00018127,2]
[378731203,1754994638060,-460.0,0.00018127,2]
[378731204,1754994638070,-460.0,0.00018127,2]
[378731205,1754994638079,-112.9674251,0.00018127,2]
[378731206,1754994638106,-347.0325749,0.00018127,2]
[378731207,1754994638115,-460.0,0.00018127,2]
[378731208,1754994638124,-460.0,0.00018127,2]
[378731209,1754994638133,-474.67,0.00018127,2]
[378731210,1754994638143,-460.0,0.00018127,2]
[378731211,1754994638151,-460.0,0.00018127,2]
[378731212,1754994638160,-464.22492471,0.00018127,2]
[378731213,1754994638170,-460.0,0.00018127,2]
[378731214,1754994638179,-460.0,0.00018127,2]
[378731215,1754994638189,-460.0,0.00018127,2]
[378731216,1754994638198,-460.0,0.00018127,2]
[378731217,1754994638207,-460.0,0.00018127,2]
[378731218,1754994638216,-460.0,0.00018127,2]
[378731219,1754994638226,-460.0,0.00018127,2]
[378731220,1754994638235,-460.0,0.00018127,2]
[378731221,1754994638245,-460.0,0.00018127,2]
[378731222,1754994638254,-460.0,0.00018127,2]
[378731223,1754994638263,-460.0,0.00018127,2]
[378731224,1754994638272,-460.0,0.00018127,2]
[378731225,1754994638281,-461.5,0.00018127,2]
[378731226,1754994638290,-520.28,0.00018127,2]
[378731227,1754994638299,-460.0,0.00018127,2]
[378731228,1754994638308,-460.0,0.00018127,2]
[378731229,1754994638318,-523.94,0.00018127,2]
[378731230,1754994638327,-468.34,0.00018127,2]
[378731231,1754994638336,-460.0,0.00018127,2]
[378731232,1754994638345,-759.94,0.00018127,2]
[378731233,1754994638354,-460.0,0.00018127,2]
[378731234,1754994638366,-643.37,0.00018127,2]
[378731235,1754994638375,-460.0,0.00018127,2]
[378731236,1754994638384,-460.0,0.00018127,2]
[378731237,1754994638393,-460.0,0.00018127,2]
[378731238,1754994638403,-525.81,0.00018127,2]
[378731239,1754994638411,-460.0,0.00018127,2]
[378731240,1754994638420,-460.0,0.00018127,2]
[378731241,1754994638430,-460.0,0.00018127,2]
[378731242,1754994638439,-460.0,0.00018127,2]
[378731243,1754994638448,-460.0,0.00018127,2]
[378731244,1754994638457,-763.92,0.00018127,2]
[378731245,1754994638467,-801.05929771,0.00018127,2]
[378731246,1754994638478,-327.87070229,0.00018127,2]
[378731247,1754994638488,-7433.69,0.00018127,2]
[378731248,1754994638498,-919.48,0.00018127,2]
[378731249,1754994638507,-460.0,0.00018127,2]
[378731250,1754994638752,-772.26,0.00018127,2]
[378731251,1754994638762,-2293.07,0.00018127,2]
[378731252,1754994638772,-456.44316522,0.00018127,2]
[378731253,1754994638782,-506.16,0.00018127,2]
[378731254,1754994638791,-170.87980418,0.00018127,2]
[378731255,1754994638800,-460.0,0.00018127,2]
[378731256,1754994638809,-460.0,0.00018127,2]
[378731257,1754994638819,-2800.27,0.00018127,2]
[378731258,1754994638829,-1987.84,0.00018127,2]
[378731259,1754994638838,-594.7633763,0.00018127,2]
[378731260,1754994638848,-460.0,0.00018127,2]
[378731261,1754994638857,-460.0,0.00018127,2]
[378731262,1754994638867,-912.16,0.00018127,2]
[378731263,1754994638876,-460.0,0.00018127,2]
[378731264,1754994638886,-460.0,0.00018127,2]
[378731265,1754994638895,-1238.59,0.00018127,2]
[378731266,1754994638904,-460.0,0.00018127,2]
[378731267,1754994638913,-460.0,0.00018127,2]
[378731268,1754994638923,-1062.19,0.00018127,2]
[378731269,1754994638932,-1723.45,0.00018127,2]
[378731270,1754994638941,-460.0,0.00018127,2]
[378731271,1754994638950,-774.21,0.00018127,2]
[378731272,1754994638959,-460.0,0.00018127,2]
[378731273,1754994638968,-929.53,0.00018127,2]
[378731274,1754994638977,-644.89,0.00018127,2]
[378731275,1754994638986,-2242.25,0.00018127,2]
[378731276,1754994638995,-460.0,0.00018127,2]
[378731277,1754994639005,-460.0,0.00018127,2]
[378731278,1754994639015,-2103.0,0.00018127,2]
[378731279,1754994639024,-460.0,0.00018128,2]
[378731280,1754994639033,-349.73989569,0.00018128,2]
[378731281,1754994639042,-460.0,0.00018128,2]
[378731282,1754994639051,-460.0,0.00018128,2]
[378731283,1754994639062,-460.0,0.00018128,2]
[378731284,1754994639071,-460.0,0.00018128,2]
[378731285,1754994639080,-460.0,0.00018128,2]
[378731286,1754994639089,-460.0,0.00018128,2]
[378731287,1754994639098,-460.0,0.00018128,2]